bitfinex/quotes_ETHUSD_20251107
["timestamp","ask_amount","ask_price","bid_price","bid_amount"]
[1762550555358,0.6808,3467.9,3467.4,2.88398475]
[1762550555562,3.56442746,3467.9,3467.4,1.259712]
[1762550555882,0.4912,3467.8,3467.4,1.259712]
[1762550556053,0.4912,3467.8,3467.5,3.093906]
[1762550556254,0.4912,3467.8,3467.4,2.88398607]
[1762550556561,0.4954,3467.5,3467.3,1.557]
[1762550556766,0.4501,3467.4,3467.3,1.557]
[1762550557200,0.9413,3467.4,3467.3,1.557]
[1762550558087,0.9413,3467.4,3467.0,5.049712]
[1762550558386,0.4949,3467.1,3467.0,5.049712]
[1762550559889,0.4912,3467.8,3467.1,9.603592]
[1762550560074,3.37491781,3467.8,3467.2,1.259712]
[1762550560274,3.37491781,3467.8,3467.7,0.144]
[1762550560459,2.88371781,3467.8,3467.7,0.144]
[1762550560660,0.1896,3467.9,3467.7,0.144]
[1762550560889,0.4954,3467.8,3467.7,0.144]
[1762550561677,0.002,3467.9,3467.7,4.54562093]
[1762550561998,0.002,3467.9,3467.8,3.23927264]
[1762550562253,0.002,3467.9,3467.8,4.78758464]
[1762550562368,0.002,3467.9,3467.8,4.49898464]
[1762550563301,0.002,3467.9,3467.8,8.28898464]
[1762550564762,0.002,3467.9,3467.8,5.405312]
[1762550564963,0.9617,3467.9,3467.8,5.049712]
[1762550565302,1.1512,3467.9,3467.8,5.049712]
[1762550565674,0.002,3467.9,3467.8,7.93338464]
[1762550566471,0.002,3467.9,3467.8,5.049712]
[1762550566672,0.002,3467.9,3467.8,18.41207764]
[1762550567090,0.002,3467.9,3467.8,19.19412661]
[1762550567294,0.002,3467.9,3467.8,19.60759345]
[1762550567665,0.002,3467.9,3467.8,9.48450045]
[1762550567961,0.002,3467.9,3467.8,22.77015845]
[1762550568178,0.002,3467.9,3467.8,12.87051264]
[1762550568380,0.002,3467.9,3467.8,13.22611264]
[1762550568898,0.002,3467.9,3467.8,15.76904464]
[1762550569704,0.5006,3467.9,3467.8,5.049712]
[1762550569911,1.1512,3467.9,3467.8,5.049712]
[1762550570886,0.002,3467.9,3467.8,7.93338464]
[1762550571092,0.002,3467.9,3467.8,17.06553764]
[1762550571313,0.002,3467.9,3467.8,14.80507564]
[1762550571772,0.002,3467.9,3467.8,11.565803]
[1762550571974,1.1512,3467.9,3467.8,5.049712]
[1762550573679,0.6901,3467.9,3467.8,5.049712]
[1762550573992,0.6901,3467.9,3467.8,7.93338464]
[1762550574197,0.002,3467.9,3467.8,10.79573564]
[1762550574523,0.002,3467.9,3467.8,7.556463]
[1762550574816,1.1512,3467.9,3467.8,5.049712]
[1762550576614,0.5006,3467.9,3467.8,5.049712]
[1762550577121,0.5006,3467.9,3467.8,11.24158064]
[1762550577421,0.5006,3467.9,3467.8,4.567908]
[1762550578126,0.5006,3467.9,3467.8,4.14338464]
[1762550578294,0.5006,3467.9,3467.8,1.259712]
[1762550579916,0.5006,3467.9,3467.8,1.260712]
[1762550580222,0.9617,3467.9,3467.8,1.260712]
[1762550581898,1.1512,3467.9,3467.8,1.260712]
[1762550582228,4.03478949,3467.9,3467.8,0.001]
[1762550582399,4.72682413,3467.9,3467.8,0.001]
[1762550583625,5.13232813,3467.9,3467.8,0.001]
[1762550583932,1.84323464,3467.9,3467.8,0.001]
[1762550584114,1.1512,3467.9,3467.8,0.001]
[1762550584913,0.6901,3467.9,3467.8,0.001]
[1762550585089,0.002,3467.9,3467.8,6.158708]
[1762550585293,0.002,3467.9,3467.8,12.94737164]
[1762550585495,0.002,3467.9,3467.8,20.76352664]
[1762550585707,0.002,3467.9,3467.8,19.93634064]
[1762550586128,0.002,3467.9,3467.8,4.477588]
[1762550586440,0.002,3467.9,3467.8,7.830971]
[1762550586612,0.002,3467.9,3467.8,7.542588]
[1762550587498,0.002,3467.9,3467.8,12.89040164]
[1762550587798,0.002,3467.9,3467.8,13.82090164]
[1762550588296,0.002,3467.9,3467.8,12.36104264]
[1762550588496,0.002,3467.9,3467.8,14.17500664]
[1762550588699,0.002,3467.9,3467.8,13.81940664]
[1762550589330,0.002,3467.9,3467.8,14.4805971]
[1762550589540,0.002,3467.9,3467.8,10.216577]
[1762550589697,0.461,3467.9,3467.8,4.867099]
[1762550589897,0.461,3467.9,3467.8,1.260712]
[1762550590126,1.1041,3467.9,3467.8,1.260712]
[1762550590500,3.98768949,3467.9,3467.8,1.260712]
[1762550590895,4.67500079,3467.9,3467.8,1.260712]
[1762550591140,1.7914113,3467.9,3467.8,1.260712]
[1762550591345,3.98768949,3467.9,3467.8,1.260712]
[1762550591547,0.002,3467.9,3467.8,1.260712]
[1762550592434,0.002,3467.9,3467.8,21.23181036]
[1762550592600,0.002,3467.9,3467.8,23.20082964]
[1762550592796,0.002,3467.9,3467.8,16.09915264]
[1762550593035,0.002,3467.9,3467.8,11.39860764]
[1762550593432,0.002,3467.9,3467.8,7.39079]
[1762550593620,0.002,3467.9,3467.8,5.260267]
[1762550593824,0.002,3467.9,3467.8,1.260712]
[1762550593825,1.1041,3467.9,3467.8,1.260712]
[1762550594222,0.6501,3467.9,3467.8,1.260712]
[1762550594841,0.002,3467.9,3467.8,4.14438464]
[1762550596341,0.461,3467.9,3467.8,1.260712]
[1762550597146,0.461,3467.9,3467.8,4.14438464]
[1762550597649,0.002,3467.9,3467.8,4.14438464]
[1762550598265,0.002,3467.9,3467.8,4.49998464]
[1762550598553,0.002,3467.9,3467.8,13.57619664]
[1762550598750,0.002,3467.9,3467.8,12.22059664]
[1762550599252,0.002,3467.9,3467.8,12.36459664]
[1762550599415,0.002,3467.9,3467.8,19.73233264]
[1762550599753,0.002,3467.9,3467.8,12.26182164]
[1762550600003,0.002,3467.9,3467.8,12.67528848]
[1762550600304,0.002,3467.9,3467.8,12.7906848]
[1762550600508,0.002,3467.9,3467.8,17.4272558]
[1762550600658,0.002,3467.9,3467.8,18.2287998]
[1762550600854,0.002,3467.9,3467.8,18.7676218]
[1762550601070,0.002,3467.9,3467.8,18.6437078]
[1762550601472,0.002,3467.9,3467.8,19.2204358]
[1762550601671,0.002,3467.9,3467.8,20.1874358]
[1762550602196,0.002,3467.9,3467.8,22.5672178]
[1762550602398,0.002,3467.9,3467.8,21.9904898]
[1762550602602,0.002,3467.9,3467.8,21.93262296]
[1762550602772,0.002,3467.9,3467.8,22.3460898]
[1762550603222,0.002,3467.9,3467.8,23.7021258]
[1762550603391,0.002,3467.9,3467.8,23.00029496]
[1762550603798,0.002,3467.9,3467.8,18.35292864]
[1762550604014,0.002,3467.9,3467.8,12.33819264]
[1762550604198,0.002,3467.9,3467.8,11.76146464]
[1762550604406,0.002,3467.9,3467.8,10.68588264]
[1762550604718,1.1041,3467.9,3467.8,3.011712]
[1762550605682,1.1041,3467.9,3467.8,5.89538464]
[1762550606615,0.6501,3467.9,3467.8,3.011712]
[1762550606914,1.1041,3467.9,3467.8,2.961712]
[1762550607615,1.1041,3467.9,3467.8,1.404712]
[1762550611744,3.98768949,3467.9,3467.8,1.404712]
[1762550612420,1.1041,3467.9,3467.8,1.404712]
[1762550612748,3.98768949,3467.9,3467.8,1.404712]
[1762550613913,1.1041,3467.9,3467.8,1.404712]
[1762550614743,0.6531,3467.9,3467.8,10.337215]
[1762550614957,4.02118949,3467.9,3467.8,0.001]
[1762550615116,4.71185853,3467.9,3467.8,0.001]
[1762550615513,5.11736253,3467.9,3467.8,0.001]
[1762550616235,5.11736253,3467.9,3467.4,0.001]
[1762550616236,3.28942613,3467.5,3467.4,0.001]
[1762550616437,3.74152613,3467.5,3467.4,0.001]
[1762550616634,4.25492884,3467.5,3467.4,0.001]
[1762550616951,5.74383366,3467.5,3467.4,0.001]
[1762550617546,2.88417166,3467.2,3467.1,0.001]
[1762550617713,8.63729436,3467.2,3467.1,0.001]
[1762550617913,3.28975885,3467.1,3467.0,0.001]
[1762550618113,4.22635885,3467.1,3467.0,0.001]
[1762550618353,5.71248135,3467.1,3467.0,0.001]
[1762550619068,5.74138406,3467.1,3467.0,0.001]
[1762550619670,5.71248135,3467.1,3467.0,0.001]
[1762550619963,5.74138406,3467.1,3467.0,0.001]
[1762550621161,5.71248135,3467.1,3467.0,0.001]
[1762550621565,5.74138406,3467.1,3467.0,0.001]
[1762550621941,5.71248135,3467.1,3467.0,0.001]
[1762550623342,5.74138406,3467.1,3467.0,0.001]
[1762550626275,10.60800005,3467.1,3467.0,0.001]
[1762550626569,3.29009164,3466.7,3466.3,0.001]
[1762550626869,9.16201034,3466.7,3466.3,0.001]
[1762550627075,9.13310763,3466.7,3466.3,0.001]
[1762550628547,4.26649164,3466.7,3466.3,0.001]
[1762550628760,4.26649164,3466.7,3466.4,0.144]
[1762550629570,4.26649164,3466.7,3466.3,0.001]
[1762550629571,3.38408764,3466.7,3466.3,0.001]
[1762550629770,3.29009164,3466.7,3466.6,0.14400001]
[1762550629936,2.88458764,3466.7,3466.6,0.14400001]
[1762550630136,2.88458764,3466.7,3466.6,0.49960001]
[1762550630341,0.632,3467.4,3466.6,0.49960001]
[1762550630653,2.88442124,3466.9,3466.8,0.3556]
[1762550630840,2.88458764,3466.7,3466.6,1e-08]
[1762550631249,2.88458764,3466.7,3466.6,0.14400001]
[1762550631250,3.38408764,3466.7,3466.6,0.14400001]
[1762550631578,4.27759164,3466.7,3466.6,1e-08]
[1762550631878,5.01377293,3466.7,3466.6,1e-08]
[1762550633446,9.88038892,3466.7,3466.6,1e-08]
[1762550639593,5.01377293,3466.7,3466.6,1e-08]
[1762550641473,5.04267564,3466.7,3466.6,1e-08]
[1762550642794,6.30238764,3466.7,3466.6,1e-08]
[1762550642994,6.27348493,3466.7,3466.6,1e-08]
[1762550643375,6.38899822,3466.7,3466.6,1e-08]
[1762550643588,3.29142359,3465.1,3465.0,0.001]
[1762550643771,4.38054125,3465.1,3465.0,0.001]
[1762550644178,4.86384125,3465.1,3465.0,0.001]
[1762550644800,3.90914125,3465.1,3465.0,0.001]
[1762550644976,4.38054125,3465.1,3465.0,0.001]
[1762550645176,4.89274396,3465.1,3465.0,0.001]
[1762550645568,9.75935995,3465.1,3465.0,0.001]
[1762550645768,9.73045724,3465.1,3465.0,0.001]
[1762550646492,9.73045724,3465.1,3463.4,0.001]
[1762550646493,2.88691936,3463.9,3463.4,0.001]
[1762550646800,8.69892729,3463.9,3463.4,0.001]
[1762550647102,9.18222729,3463.9,3463.4,0.001]
[1762550647478,9.58773129,3463.9,3463.4,0.001]
[1762550647681,1.35089594,3463.9,3463.4,0.001]
[1762550647884,0.6686,3464.9,3463.8,0.7122]
[1762550648196,3.29217336,3464.2,3464.1,0.3556]
[1762550648567,3.29217336,3464.2,3464.1,0.4644]
[1762550650121,2.88691936,3463.9,3463.8,0.001]
[1762550650287,3.29217336,3464.2,3464.1,0.4644]
[1762550650913,2.8865808,3464.4,3464.1,0.82]
[1762550651223,2.8863521,3464.6,3464.3,0.3556]
[1762550651421,3.36917101,3465.2,3464.3,0.3556]
[1762550651715,2.88633608,3464.6,3464.5,0.3556]
[1762550652084,2.88633608,3464.6,3464.5,0.7112]
[1762550652280,0.002,3465.1,3464.5,0.7112]
[1762550652601,2.88633608,3464.6,3464.5,0.3556]
[1762550652807,0.002,3465.1,3465.0,0.3556]
[1762550653223,2.88791959,3465.1,3465.0,0.3556]
[1762550653531,2.88791959,3465.1,3465.0,0.7112]
[1762550653825,0.002,3465.1,3465.0,0.7112]
[1762550653985,2.88791959,3465.1,3465.0,0.7112]
[1762550654323,0.002,3465.1,3465.0,0.7112]
[1762550655012,2.88791959,3465.1,3465.0,0.7112]
[1762550655314,2.88791959,3465.1,3465.0,0.3556]
[1762550656020,0.002,3465.1,3465.0,0.3556]
[1762550656244,2.88791959,3465.1,3465.0,0.7112]
[1762550656920,0.002,3465.1,3465.0,0.7112]
[1762550657246,0.002,3465.1,3465.0,0.3556]
[1762550657460,2.88791959,3465.1,3465.0,0.3556]
[1762550658324,2.88616947,3464.8,3464.5,1.259712]
[1762550658552,2.88616947,3464.8,3464.7,0.3556]
[1762550659055,0.002,3465.1,3464.7,0.3556]
[1762550659359,3.29342359,3465.1,3465.0,0.3556]
[1762550659729,2.88622466,3464.8,3464.5,1.615312]
[1762550659924,2.88622466,3464.8,3464.6,0.3556]
[1762550660250,2.88625277,3464.7,3464.5,1.259712]
[1762550660755,2.88625277,3464.7,3464.6,0.3556]
[1762550661934,2.88619474,3464.8,3464.6,0.3556]
[1762550662116,2.88625277,3464.7,3464.6,0.3556]
[1762550662316,0.407504,3465.1,3465.0,0.3556]
[1762550662513,0.405504,3464.8,3464.1,0.1088]
[1762550662719,0.405504,3464.8,3464.3,1.259712]
[1762550663036,3.29167347,3464.8,3464.7,0.3556]
[1762550663719,3.29167347,3464.8,3464.7,0.4996]
[1762550663934,3.29167347,3464.8,3464.7,0.144]
[1762550664453,3.29167347,3464.8,3464.7,0.4996]
[1762550665253,2.88616947,3464.8,3464.7,0.4996]
[1762550665631,3.29167347,3464.8,3464.7,0.144]
[1762550665836,4.3810426,3464.8,3464.7,0.144]
[1762550666231,3.9096426,3464.8,3464.7,0.144]
[1762550666720,0.407504,3465.1,3464.7,0.8552]
[1762550666921,0.002,3465.1,3464.9,0.3556]
[1762550667152,0.407504,3465.1,3465.0,0.4996]
[1762550667459,3.29342359,3465.1,3465.0,0.144]
[1762550667662,4.24812359,3465.1,3465.0,0.144]
[1762550667864,4.47822714,3465.1,3465.0,0.144]
[1762550669264,4.00682714,3465.1,3465.0,0.4996]
[1762550669473,4.00682714,3465.1,3465.0,0.144]
[1762550669772,4.96152714,3465.1,3465.0,0.144]
[1762550670370,0.405504,3464.9,3464.3,0.001]
[1762550670576,2.88650271,3464.4,3464.3,0.001]
[1762550671075,2.88650271,3464.4,3464.3,0.5006]
[1762550672980,2.88650271,3464.4,3464.3,0.145]
[1762550672981,3.75590671,3464.4,3464.3,0.145]
[1762550673149,4.26900942,3464.4,3464.3,0.145]
[1762550673474,5.24428999,3464.4,3464.3,0.145]
[1762550673987,5.2731927,3464.4,3464.3,0.145]
[1762550674155,5.2731927,3464.4,3464.3,0.001]
[1762550675527,4.76008999,3464.4,3464.3,0.001]
[1762550675713,5.2731927,3464.4,3464.3,0.001]
[1762550676029,5.24428999,3464.4,3464.3,0.001]
[1762550676778,4.76008999,3464.4,3464.3,0.001]
[1762550676973,4.29618999,3464.4,3464.3,0.001]
[1762550677780,4.76008999,3464.4,3464.3,0.001]
[1762550678679,5.24428999,3464.4,3464.3,0.001]
[1762550681116,4.76008999,3464.4,3464.3,0.001]
[1762550684336,5.24728999,3464.4,3464.3,0.001]
[1762550685460,0.002,3464.4,3464.3,0.3566]
[1762550685738,0.002,3464.4,3464.3,0.7122]
[1762550685739,2.88850271,3464.4,3464.3,0.7122]
[1762550685900,0.002,3464.4,3464.3,0.7122]
[1762550686100,2.88850271,3464.4,3464.3,0.7122]
[1762550686302,0.002,3464.4,3464.3,0.7122]
[1762550687244,2.88850271,3464.4,3464.3,0.7122]
[1762550687607,0.002,3464.4,3464.3,0.7122]
[1762550687926,0.002,3464.4,3464.3,0.3566]
[1762550687927,2.88850271,3464.4,3464.3,0.3566]
[1762550688128,2.88850271,3464.4,3464.3,0.7122]
[1762550690763,2.88850271,3464.4,3464.3,0.3566]
[1762550691682,3.35750271,3464.4,3464.3,0.001]
[1762550691842,3.9349931,3464.4,3464.3,0.001]
[1762550692844,4.4221931,3464.4,3464.3,0.001]
[1762550694075,4.8276971,3464.4,3464.3,0.001]
[1762550695033,4.3404971,3464.4,3464.3,0.001]
[1762550695240,4.8276971,3464.4,3464.3,0.001]
[1762550695440,4.8276971,3464.4,3464.3,0.145]
[1762550696283,4.8276971,3464.4,3464.3,0.5006]
[1762550696284,3.29400671,3464.4,3464.3,0.5006]
[1762550696431,2.88850271,3464.4,3464.3,0.5006]
[1762550699087,2.88850271,3464.4,3464.3,0.145]
[1762550699382,2.88850271,3464.4,3464.3,0.5006]
[1762550700390,3.35750271,3464.4,3464.3,0.145]
[1762550701084,2.88850271,3464.4,3464.3,0.5006]
[1762550701285,3.9349931,3464.4,3464.3,0.145]
[1762550701586,4.8276971,3464.4,3464.3,0.145]
[1762550702453,3.8714971,3464.4,3464.3,0.145]
[1762550703155,4.3680971,3464.4,3464.3,0.145]
[1762550703352,4.8571971,3464.4,3464.3,0.145]
[1762550703598,4.88609981,3464.4,3464.3,1e-08]
[1762550703806,5.03009981,3464.4,3464.3,1e-08]
[1762550704956,4.5120971,3464.4,3464.3,1e-08]
[1762550705154,3.29400671,3464.4,3464.3,1e-08]
[1762550705989,3.79060671,3464.4,3464.3,1e-08]
[1762550706580,4.27970671,3464.4,3464.3,1e-08]
[1762550707300,4.27970671,3464.4,3464.1,1e-08]
[1762550707301,3.74107336,3464.2,3464.1,1e-08]
[1762550707458,3.76997607,3464.2,3464.1,1e-08]
[1762550707658,4.97383395,3464.2,3464.1,1e-08]
[1762550708601,2.88725277,3463.5,3462.4,0.001]
[1762550708941,3.78935677,3463.5,3462.4,0.001]
[1762550709200,4.30735948,3463.5,3462.4,0.001]
[1762550709384,3.32750288,3463.2,3463.1,1e-08]
[1762550709587,3.35640559,3463.2,3463.1,1e-08]
[1762550709781,4.25100959,3463.2,3463.1,1e-08]
[1762550710011,5.51072159,3463.2,3463.1,1e-08]
[1762550710297,4.22210688,3463.2,3463.1,1e-08]
[1762550710472,5.29567117,3463.2,3463.1,1e-08]
[1762550710793,4.80657117,3463.2,3463.1,1e-08]
[1762550711004,2.88750288,3463.2,3463.1,1e-08]
[1762550711783,3.38410288,3463.2,3463.1,1e-08]
[1762550712262,4.30760959,3463.2,3463.1,1e-08]
[1762550713776,3.81850959,3463.2,3463.1,1e-08]
[1762550714098,2.88701647,3463.8,3463.1,0.75920001]
[1762550714260,2.88683602,3464.0,3463.3,0.3556]
[1762550714457,2.88733614,3463.4,3463.3,0.3556]
[1762550715195,2.88750288,3463.2,3463.1,1e-08]
[1762550717327,2.88750288,3463.2,3463.1,0.14400001]
[1762550717982,3.38410288,3463.2,3463.1,0.14400001]
[1762550718422,2.88750288,3463.2,3463.1,0.49960001]
[1762550718627,2.88750288,3463.2,3463.1,0.50060001]
[1762550719903,2.88750288,3463.2,3463.1,0.54860001]
[1762550721883,2.88750288,3463.2,3463.1,0.90420001]
[1762550722083,2.88750288,3463.2,3463.1,0.54860001]
[1762550724835,2.88750288,3463.2,3463.1,0.14500001]
[1762550725425,3.38410288,3463.2,3463.1,0.14500001]
[1762550726439,2.88750288,3463.2,3463.1,0.14500001]
[1762550726756,2.88750288,3463.2,3463.1,0.50060001]
[1762550726955,2.88750288,3463.2,3463.1,0.54860001]
[1762550728344,2.88750288,3463.2,3463.1,0.14500001]
[1762550729442,2.88750288,3463.2,3463.1,0.50060001]
[1762550729811,0.405504,3463.6,3463.1,0.50060001]
[1762550730037,2.88750288,3463.2,3463.1,0.50060001]
[1762550730340,0.4891,3463.6,3463.1,0.50060001]
[1762550730341,2.88743474,3463.3,3463.1,0.35660001]
[1762550730543,0.144,3463.9,3463.2,0.048]
[1762550730703,2.88716941,3463.6,3463.5,0.3556]
[1762550730909,2.88727649,3463.5,3463.2,0.4036]
[1762550731102,2.88727649,3463.5,3463.1,0.00100001]
[1762550731103,2.88725277,3463.5,3463.1,0.00100001]
[1762550731340,2.88750288,3463.2,3463.1,0.00100001]
[1762550732140,3.38410288,3463.2,3463.1,0.00100001]
[1762550734125,3.85810288,3463.2,3463.1,0.00100001]
[1762550734860,3.38410288,3463.2,3463.1,0.00100001]
[1762550735061,2.88750288,3463.2,3463.1,0.00100001]
[1762550735767,2.88950288,3463.2,3463.1,0.00100001]
[1762550736148,2.88950288,3463.2,3463.1,0.76020001]
[1762550736149,0.002,3463.2,3463.1,0.76020001]
[1762550737461,0.002,3463.2,3463.1,14.69599201]
[1762550737666,0.002,3463.2,3463.1,20.71186401]
[1762550737966,0.002,3463.2,3463.1,23.59945027]
[1762550738186,0.002,3463.6,3463.5,2.93725277]
[1762550738333,0.002,3463.6,3463.5,3.29285277]
[1762550738539,0.002,3463.6,3463.5,17.31550577]
[1762550738874,0.002,3463.6,3463.5,20.13864077]
[1762550739098,0.002,3463.6,3463.5,36.15842077]
[1762550739238,0.002,3463.9,3463.8,4.14671471]
[1762550739441,0.002,3463.9,3463.8,4.50231471]
[1762550739673,0.002,3463.9,3463.8,24.79562971]
[1762550740044,0.002,3463.9,3463.8,24.58256671]
[1762550740573,0.002,3464.4,3464.3,2.93658603]
[1762550740743,0.002,3464.4,3464.3,4.90749803]
[1762550740935,0.002,3464.4,3464.3,22.31471003]
[1762550741158,0.002,3464.4,3464.3,28.66837003]
[1762550741970,0.002,3464.8,3464.7,2.93625277]
[1762550742177,0.002,3464.8,3464.7,3.43585277]
[1762550742357,0.002,3464.8,3464.7,22.98331029]
[1762550742569,0.002,3464.8,3464.7,17.33894477]
[1762550742833,0.002,3464.8,3464.7,17.19494477]
[1762550742948,0.002,3464.8,3464.7,17.31041837]
[1762550743142,0.002,3464.8,3464.7,29.59863437]
[1762550743544,0.002,3464.8,3464.7,27.09801037]
[1762550743741,0.002,3464.8,3464.7,28.23480494]
[1762550743954,1e-08,3465.2,3465.1,5.05613559]
[1762550744246,0.002,3465.8,3465.4,3.29117376]
[1762550744471,1e-08,3465.8,3465.7,2.93541997]
[1762550744677,0.4765,3467.9,3467.0,0.05]
[1762550744878,0.4765,3467.9,3467.1,0.1474]
[1762550745062,2.88397397,3467.5,3467.1,0.1474]
[1762550745256,0.2883974,3467.5,3466.7,0.3556]
[1762550745496,2.8840053,3467.4,3466.8,1.559]
[1762550745697,2.88426566,3467.1,3466.8,1.609]
[1762550745984,2.88425933,3467.1,3466.8,1.609]
[1762550746484,2.88371566,3467.8,3467.0,0.3556]
[1762550746485,2.88410076,3467.3,3467.0,0.3556]
[1762550746857,2.88402405,3467.4,3467.0,0.3556]
[1762550747067,0.4745,3467.8,3467.0,0.3556]
[1762550747250,2.88383896,3467.6,3466.6,0.1474]
[1762550747449,2.88439125,3467.0,3466.6,0.1474]
[1762550747688,2.88439125,3467.0,3466.8,0.05]
[1762550748052,2.88427545,3467.1,3466.8,0.05]
[1762550748251,2.88439423,3467.0,3466.6,0.1474]
[1762550748469,2.88426064,3467.1,3466.6,0.1474]
[1762550748676,2.88426064,3467.1,3466.6,1.407112]
[1762550748888,3.35866926,3467.3,3466.6,1.407112]
[1762550749051,2.88424386,3467.2,3466.6,1.407112]
[1762550749251,2.88428311,3467.1,3466.6,1.407112]
[1762550749450,0.4745,3467.6,3466.6,1.407112]
[1762550749681,2.88426432,3467.1,3466.6,1.407112]
[1762550750075,2.88426432,3467.1,3466.6,1.762712]
[1762550750587,0.84412218,3467.6,3466.6,1.762712]
[1762550750880,0.36962218,3467.6,3466.6,0.1974]
[1762550751082,0.4745,3467.5,3466.6,0.1974]
[1762550751392,2.88446165,3466.9,3466.6,0.1974]
[1762550751609,0.37280237,3467.4,3466.6,0.1974]
[1762550751799,3.35842912,3467.5,3466.8,0.3556]
[1762550751956,2.88430987,3467.1,3466.8,0.3556]
[1762550752288,2.88427971,3467.1,3466.8,0.3556]
[1762550752488,0.4745,3467.5,3466.8,0.3556]
[1762550752662,2.88417214,3467.2,3467.0,0.144]
[1762550752863,0.002,3467.1,3466.8,0.3556]
[1762550753066,0.002,3467.1,3467.0,4.19405004]
[1762550753265,0.002,3467.1,3467.0,30.22936004]
[1762550753583,0.002,3467.1,3467.0,32.73730893]
[1762550753888,0.002,3467.1,3467.0,22.97788204]
[1762550754088,0.002,3467.1,3467.0,32.73423536]
[1762550754287,0.002,3467.5,3467.4,2.9340053]
[1762550754484,0.002,3467.5,3467.4,4.5493173]
[1762550754688,0.002,3467.5,3467.4,4.9049173]
[1762550754886,0.002,3467.5,3467.4,35.3104213]
[1762550755253,0.002,3467.8,3467.4,35.3104213]
[1762550755254,0.002,3467.8,3467.7,3.2892598]
[1762550755453,0.002,3467.8,3467.7,11.7431658]
[1762550755781,0.002,3467.8,3467.7,42.0987658]
[1762550757202,0.002,3467.8,3467.7,41.73244512]
[1762550757364,0.002,3467.8,3467.7,43.34044512]
[1762550757567,0.002,3467.8,3467.7,42.93494112]
[1762550758511,0.002,3467.8,3467.7,7.618585]
[1762550758804,0.002,3467.8,3467.7,9.176585]
[1762550758984,0.002,3467.8,3467.7,10.4523408]
[1762550759186,0.002,3467.8,3467.7,25.4696878]
[1762550759393,0.002,3467.8,3467.7,29.4696878]
[1762550759709,0.002,3467.8,3467.7,27.2572038]
[1762550760097,0.002,3467.8,3467.7,26.7167778]
[1762550760297,0.002,3467.8,3467.7,33.72953512]
[1762550760805,0.002,3467.8,3467.7,33.67953512]
[1762550761008,0.002,3467.8,3467.7,30.08520012]
[1762550761209,0.002,3467.8,3467.7,17.8719978]
[1762550761803,0.002,3467.8,3467.7,9.09329]
[1762550761996,0.002,3467.8,3467.7,5.930386]
[1762550762192,0.002,3467.8,3467.7,15.010181]
[1762550762401,0.002,3467.8,3467.7,18.5975368]
[1762550762600,0.002,3467.8,3467.7,8.50729]
[1762550762807,0.002,3467.8,3467.7,7.069462]
[1762550763000,0.002,3467.8,3467.7,5.511462]
[1762550763202,0.002,3467.8,3467.7,11.145306]
[1762550763423,0.002,3467.8,3467.7,11.892575]
[1762550763606,0.002,3467.8,3467.7,10.371242]
[1762550763805,0.002,3467.8,3467.7,17.45471532]
[1762550764002,0.002,3467.8,3467.7,20.33847112]
[1762550764299,0.002,3467.8,3467.7,43.71023169]
[1762550765008,0.002,3468.2,3468.1,4.1931352]
[1762550765233,0.002,3468.2,3468.1,5.723164]
[1762550765401,0.002,3468.2,3468.1,36.028764]
[1762550765599,0.002,3468.2,3468.1,39.93392977]
[1762550766097,0.002,3468.2,3468.1,36.14392977]
[1762550766300,0.002,3468.6,3468.5,4.59830667]
[1762550766531,0.002,3468.6,3468.5,11.37617999]
[1762550766736,0.002,3468.6,3468.5,41.82577999]
[1762550768330,0.002,3468.6,3468.5,43.38277999]
[1762550768499,0.002,3468.6,3468.5,44.11407056]
[1762550768705,0.002,3468.6,3468.5,14.11407056]
[1762550769234,0.002,3468.6,3468.5,44.11407056]
[1762550770844,0.002,3468.6,3468.5,31.37065399]
[1762550771046,0.002,3468.6,3468.5,25.56407299]
[1762550771236,0.002,3468.6,3468.5,25.61407299]
[1762550771431,0.002,3468.6,3468.5,25.56407299]
[1762550771953,0.002,3468.6,3468.5,27.59791499]
[1762550772523,0.002,3468.6,3468.5,25.54638599]
[1762550772717,0.002,3468.6,3468.5,11.11467599]
[1762550772923,0.002,3468.6,3468.5,12.67167599]
[1762550773152,0.002,3468.6,3468.5,2.936759]
[1762550773352,0.4667,3468.6,3468.5,0.194]
[1762550773558,0.4667,3468.6,3468.5,1.751]
[1762550773729,0.9458,3468.6,3468.5,2.693732]
[1762550773928,0.4667,3468.6,3468.5,10.453712]
[1762550774156,0.002,3468.6,3468.5,19.57742067]
[1762550774353,0.002,3468.6,3468.5,19.88302067]
[1762550774547,0.002,3468.6,3468.5,20.18862067]
[1762550774950,0.002,3468.6,3468.5,13.94800267]
[1762550775143,0.002,3468.6,3468.5,42.03611367]
[1762550775324,0.002,3468.6,3468.5,37.71161367]
[1762550775653,0.002,3468.6,3468.5,26.30877567]
[1762550775865,0.002,3468.6,3468.5,43.44941667]
[1762550776062,0.002,3468.6,3468.5,37.70744667]
[1762550776475,0.002,3468.6,3468.5,34.52297167]
[1762550776770,0.002,3468.6,3468.5,29.01229667]
[1762550776977,0.002,3468.6,3468.5,30.26759167]
[1762550777142,0.002,3468.6,3468.5,34.05759167]
[1762550777870,0.002,3468.6,3468.5,30.96087767]
[1762550778069,0.002,3468.6,3468.5,29.03607267]
[1762550778252,0.002,3468.6,3468.5,26.47042867]
[1762550778853,0.002,3468.6,3468.5,24.35430467]
[1762550779075,0.4667,3468.6,3468.5,14.193712]
[1762550779379,0.9458,3468.6,3468.5,20.50575767]
[1762550779538,0.002,3468.6,3468.5,20.81135767]
[1762550779966,0.002,3468.6,3468.5,32.25393267]
[1762550780168,0.002,3468.6,3468.5,29.76042567]